[Event "*** Titled Tuesday Blitz"]
[Site "Chess.com"]
[Date "2018.12.04"]
[Round "6"]
[White "djano"]
[Black "chess4life23"]
[Result "0-1"]
[WhiteElo "2337"]
[BlackElo "2393"]
[TimeControl "180+2"]
[EndTime "14:21:47 PST"]
[Termination "chess4life23 won by resignation"]

1. c4 {[%clk 0:03:01.9]} 1... e5 {[%clk 0:03:00.2]} 2. Nc3 {[%clk 0:03:02.2]}
2... Nc6 {[%clk 0:03:01.2]} 3. Nf3 {[%clk 0:03:01.1]} 3... d6 {[%clk 0:03:01.6]}
4. g3 {[%clk 0:02:57.1]} 4... Be6 {[%clk 0:03:01.5]} 5. d3 {[%clk 0:02:57]} 5...
Be7 {[%clk 0:03:00.6]} 6. Bg2 {[%clk 0:02:56.2]} 6... Qc8 {[%clk 0:02:57]} 7. h3
{[%clk 0:02:49.1]} 7... h6 {[%clk 0:02:56.2]} 8. Nd5 {[%clk 0:02:46.5]} 8... Bd8
{[%clk 0:02:55.3]} 9. b4 {[%clk 0:02:38.8]} 9... Nce7 {[%clk 0:02:53]} 10. Bb2
{[%clk 0:02:33.4]} 10... Nxd5 {[%clk 0:02:40.4]} 11. cxd5 {[%clk 0:02:33.9]}
11... Bxd5 {[%clk 0:02:42.3]} 12. O-O {[%clk 0:02:26.8]} 12... Nf6 {[%clk
0:02:42.3]} 13. Kh2 {[%clk 0:01:50.9]} 13... O-O {[%clk 0:02:42.1]} 14. e4
{[%clk 0:01:52.1]} 14... Be6 {[%clk 0:02:41.8]} 15. d4 {[%clk 0:01:53.6]} 15...
Nxe4 {[%clk 0:02:29.1]} 16. dxe5 {[%clk 0:01:54.6]} 16... dxe5 {[%clk
0:01:54.3]} 17. Nxe5 {[%clk 0:01:56.5]} 17... Nd6 {[%clk 0:01:39.2]} 18. Rc1
{[%clk 0:01:47.3]} 18... Bf6 {[%clk 0:01:38.7]} 19. f4 {[%clk 0:01:44.2]} 19...
Rd8 {[%clk 0:01:34.7]} 20. Qf3 {[%clk 0:01:44.6]} 20... c6 {[%clk 0:01:33.2]}
21. a4 {[%clk 0:01:39.7]} 21... Bd5 {[%clk 0:01:33.9]} 22. Qe2 {[%clk
0:01:34.3]} 22... Bxg2 {[%clk 0:01:23.6]} 23. Qxg2 {[%clk 0:01:36.2]} 23... Qf5
{[%clk 0:01:22.9]} 24. Rfe1 {[%clk 0:01:19.4]} 24... Re8 {[%clk 0:01:01.2]} 25.
Rc5 {[%clk 0:01:19.9]} 25... Qe6 {[%clk 0:00:55.3]} 26. Rd1 {[%clk 0:01:11.1]}
26... Nf5 {[%clk 0:00:51.3]} 27. Qe4 {[%clk 0:00:54.5]} 27... Qb3 {[%clk
0:00:45.3]} 28. Rd2 {[%clk 0:00:42.7]} 28... Qxg3+ {[%clk 0:00:45.2]} 29. Kh1
{[%clk 0:00:41.7]} 29... Qxh3+ {[%clk 0:00:40.6]} 30. Kg1 {[%clk 0:00:43]} 30...
Ng3 {[%clk 0:00:35.3]} 31. Qf3 {[%clk 0:00:43.1]} 31... Rad8 {[%clk 0:00:32.4]}
32. Rh2 {[%clk 0:00:36.3]} 32... Qf5 {[%clk 0:00:11.8]} 33. Qxg3 {[%clk
0:00:37.5]} 33... Qb1+ {[%clk 0:00:12.8]} 34. Rc1 {[%clk 0:00:36]} 34... Rd1+
{[%clk 0:00:14.4]} 35. Rxd1 {[%clk 0:00:34.4]} 35... Qxd1+ {[%clk 0:00:16.3]}
36. Kg2 {[%clk 0:00:34]} 36... Rd8 {[%clk 0:00:15.8]} 37. Bc3 {[%clk 0:00:28.9]}
37... Bxe5 {[%clk 0:00:14.1]} 38. fxe5 {[%clk 0:00:29.5]} 38... Rd3 {[%clk
0:00:14.2]} 39. Qe1 {[%clk 0:00:13.6]} 39... Qc2+ {[%clk 0:00:15.3]} 40. Kh1
{[%clk 0:00:13.9]} 40... Qxc3 {[%clk 0:00:16.2]} 41. Qxc3 {[%clk 0:00:13.3]}
41... Rxc3 {[%clk 0:00:18.1]} 42. Rd2 {[%clk 0:00:11.1]} 42... Rc4 {[%clk
0:00:17.8]} 43. Rd8+ {[%clk 0:00:11.4]} 43... Kh7 {[%clk 0:00:19.1]} 44. Rd7
{[%clk 0:00:12]} 44... Rxb4 {[%clk 0:00:20.5]} 45. Rxf7 {[%clk 0:00:13.1]} 45...
Rxa4 {[%clk 0:00:22.2]} 46. Rxb7 {[%clk 0:00:12.9]} 46... Re4 {[%clk 0:00:24.1]}
47. Rxa7 {[%clk 0:00:13.8]} 47... Rxe5 {[%clk 0:00:25]} 0-1

[Event "*** Titled Tuesday Blitz"]
[Site "Chess.com"]
[Date "2018.12.04"]
[Round "6"]
[White "nurmiTV"]
[Black "cool4chess"]
[Result "0-1"]
[WhiteElo "2453"]
[BlackElo "2255"]
[TimeControl "180+2"]
[EndTime "14:21:53 PST"]
[Termination "cool4chess won on time"]

1. c4 {[%clk 0:02:20.3]} 1... e5 {[%clk 0:03:00.4]} 2. Nc3 {[%clk 0:02:22.2]}
2... Nf6 {[%clk 0:03:01.4]} 3. g3 {[%clk 0:02:22.6]} 3... Nc6 {[%clk 0:03:02.3]}
4. Bg2 {[%clk 0:02:24.1]} 4... Bc5 {[%clk 0:03:03.4]} 5. e3 {[%clk 0:02:25.6]}
5... d5 {[%clk 0:03:04.1]} 6. cxd5 {[%clk 0:02:25.8]} 6... Nb4 {[%clk
0:03:05.3]} 7. d4 {[%clk 0:02:27.4]} 7... exd4 {[%clk 0:03:05.2]} 8. exd4 {[%clk
0:02:29.3]} 8... Bb6 {[%clk 0:03:06.5]} 9. Nge2 {[%clk 0:02:30.7]} 9... O-O
{[%clk 0:03:06.6]} 10. Nf4 {[%clk 0:02:28.5]} 10... Re8+ {[%clk 0:02:43.1]} 11.
Be3 {[%clk 0:02:28.5]} 11... Bxd4 {[%clk 0:02:10.3]} 12. O-O {[%clk 0:02:24.3]}
12... Bxe3 {[%clk 0:02:07.5]} 13. fxe3 {[%clk 0:02:24.3]} 13... Rxe3 {[%clk
0:01:42.8]} 14. Rc1 {[%clk 0:02:16.2]} 14... Re8 {[%clk 0:01:35.2]} 15. Nh5
{[%clk 0:02:10.1]} 15... Nxh5 {[%clk 0:01:13.2]} 16. Qxh5 {[%clk 0:02:09.4]}
16... g6 {[%clk 0:01:14.6]} 17. Qh6 {[%clk 0:02:08.4]} 17... Bf5 {[%clk
0:01:12.9]} 18. g4 {[%clk 0:01:49.8]} 18... Bxg4 {[%clk 0:01:04.6]} 19. Qf4
{[%clk 0:01:42.4]} 19... Nd3 {[%clk 0:00:51.8]} 20. Qxg4 {[%clk 0:01:26]} 20...
Nxc1 {[%clk 0:00:52.1]} 21. Rxc1 {[%clk 0:01:27.9]} 21... Qe7 {[%clk 0:00:50.1]}
22. Rf1 {[%clk 0:01:22.3]} 22... Qe3+ {[%clk 0:00:27.7]} 23. Kh1 {[%clk
0:01:09.7]} 23... h5 {[%clk 0:00:28.7]} 24. Qd7 {[%clk 0:01:06.1]} 24... Re7
{[%clk 0:00:28.6]} 25. Qb5 {[%clk 0:01:04.6]} 25... Qb6 {[%clk 0:00:28.4]} 26.
Qd3 {[%clk 0:00:46]} 26... Qxb2 {[%clk 0:00:20.9]} 27. Ne4 {[%clk 0:00:46.2]}
27... Kg7 {[%clk 0:00:21.3]} 28. d6 {[%clk 0:00:44.1]} 28... cxd6 {[%clk
0:00:21.7]} 29. Qxd6 {[%clk 0:00:44.4]} 29... Qe5 {[%clk 0:00:22.7]} 30. Qd2
{[%clk 0:00:38.3]} 30... Rc8 {[%clk 0:00:17.3]} 31. Ng3 {[%clk 0:00:31.5]} 31...
Rec7 {[%clk 0:00:18]} 32. Qf2 {[%clk 0:00:22.4]} 32... Qe6 {[%clk 0:00:13.5]}
33. Qxa7 {[%clk 0:00:21.7]} 33... b6 {[%clk 0:00:10.6]} 34. Qa3 {[%clk
0:00:21.2]} 34... Rc3 {[%clk 0:00:11.3]} 35. Qb2 {[%clk 0:00:20.6]} 35... Kg8
{[%clk 0:00:08.3]} 36. Ne4 {[%clk 0:00:21]} 36... Rc2 {[%clk 0:00:09.4]} 37.
Nf6+ {[%clk 0:00:21.8]} 37... Kf8 {[%clk 0:00:10.9]} 38. Qa3+ {[%clk 0:00:18.4]}
38... R2c5 {[%clk 0:00:10.9]} 39. Ne4 {[%clk 0:00:18.1]} 39... Kg7 {[%clk
0:00:12.2]} 40. Nxc5 {[%clk 0:00:19]} 40... Rxc5 {[%clk 0:00:14.1]} 41. Qb2+
{[%clk 0:00:19.5]} 41... Kg8 {[%clk 0:00:14.7]} 42. Qf2 {[%clk 0:00:14.8]} 42...
Rf5 {[%clk 0:00:13.9]} 43. Qd2 {[%clk 0:00:13.4]} 43... Rxf1+ {[%clk 0:00:13.3]}
44. Bxf1 {[%clk 0:00:15.3]} 44... Qe4+ {[%clk 0:00:14.3]} 45. Bg2 {[%clk
0:00:16.3]} 45... Qb1+ {[%clk 0:00:15.8]} 0-1

[Event "*** Titled Tuesday Blitz"]
[Site "Chess.com"]
[Date "2018.12.04"]
[Round "6"]
[White "lucasmito"]
[Black "LuisFSiles"]
[Result "1-0"]
[WhiteElo "2359"]
[BlackElo "2215"]
[TimeControl "180+2"]
[EndTime "14:21:56 PST"]
[Termination "lucasmito won on time"]

1. e4 {[%clk 0:03:01.9]} 1... e5 {[%clk 0:02:59.5]} 2. Nf3 {[%clk 0:03:01.8]}
2... Nc6 {[%clk 0:03:00.5]} 3. Bb5 {[%clk 0:02:59.6]} 3... Nf6 {[%clk 0:03:01]}
4. O-O {[%clk 0:02:59.9]} 4... Nxe4 {[%clk 0:02:59]} 5. Re1 {[%clk 0:03:00.2]}
5... Nd6 {[%clk 0:02:59.4]} 6. Bxc6 {[%clk 0:02:59.5]} 6... dxc6 {[%clk
0:02:59.9]} 7. Nxe5 {[%clk 0:03:00.1]} 7... Be7 {[%clk 0:03:00.7]} 8. d4 {[%clk
0:02:58.1]} 8... O-O {[%clk 0:02:59.9]} 9. Nc3 {[%clk 0:02:46]} 9... Nf5 {[%clk
0:02:34]} 10. Be3 {[%clk 0:02:34.4]} 10... Bf6 {[%clk 0:02:22.1]} 11. Ne4 {[%clk
0:02:16]} 11... Be7 {[%clk 0:02:01.8]} 12. c3 {[%clk 0:02:08.9]} 12... Nxe3
{[%clk 0:01:59]} 13. Rxe3 {[%clk 0:02:03.9]} 13... Be6 {[%clk 0:01:44.3]} 14.
Qd3 {[%clk 0:01:57.9]} 14... f6 {[%clk 0:01:33.9]} 15. Nf3 {[%clk 0:01:50.4]}
15... Qd7 {[%clk 0:01:15.6]} 16. b3 {[%clk 0:01:34.5]} 16... Rae8 {[%clk
0:01:13.6]} 17. Rae1 {[%clk 0:01:34.1]} 17... Bd5 {[%clk 0:01:03.9]} 18. h3
{[%clk 0:01:18.8]} 18... f5 {[%clk 0:00:53]} 19. Ned2 {[%clk 0:01:02.1]} 19...
f4 {[%clk 0:00:42]} 20. R3e2 {[%clk 0:00:59.5]} 20... Bf6 {[%clk 0:00:36.8]} 21.
Ne5 {[%clk 0:00:51.5]} 21... Qd6 {[%clk 0:00:29.2]} 22. Ndc4 {[%clk 0:00:48.7]}
22... Qd8 {[%clk 0:00:25]} 23. Nd2 {[%clk 0:00:36]} 23... Qd6 {[%clk 0:00:17]}
24. Ndf3 {[%clk 0:00:35.8]} 24... Bxf3 {[%clk 0:00:17.2]} 25. Nxf3 {[%clk
0:00:32.1]} 25... Rxe2 {[%clk 0:00:16.8]} 26. Qxe2 {[%clk 0:00:34]} 26... c5
{[%clk 0:00:16.6]} 27. Qc4+ {[%clk 0:00:34]} 27... Kh8 {[%clk 0:00:16]} 28. Re6
{[%clk 0:00:31.9]} 28... Qd7 {[%clk 0:00:13.4]} 29. dxc5 {[%clk 0:00:32.1]}
29... Qd1+ {[%clk 0:00:12.3]} 30. Re1 {[%clk 0:00:33]} 30... Qc2 {[%clk
0:00:12]} 31. Qxf4 {[%clk 0:00:32.5]} 31... Qxc3 {[%clk 0:00:11.4]} 32. Rc1
{[%clk 0:00:29.4]} 32... Qb2 {[%clk 0:00:10.9]} 33. Qd2 {[%clk 0:00:26]} 33...
Qxd2 {[%clk 0:00:10.3]} 34. Nxd2 {[%clk 0:00:27.9]} 34... Bg5 {[%clk 0:00:11.7]}
35. Rc2 {[%clk 0:00:29.2]} 35... Rd8 {[%clk 0:00:10.5]} 36. Nf3 {[%clk
0:00:29.2]} 36... Bf4 {[%clk 0:00:11.5]} 37. g3 {[%clk 0:00:29.8]} 37... Rd1+
{[%clk 0:00:11.3]} 38. Kg2 {[%clk 0:00:30.9]} 38... Bc1 {[%clk 0:00:10.8]} 39.
Re2 {[%clk 0:00:27.9]} 39... Kg8 {[%clk 0:00:11.8]} 40. Re7 {[%clk 0:00:27.2]}
40... c6 {[%clk 0:00:08.2]} 41. Rxb7 {[%clk 0:00:25.2]} 41... Ba3 {[%clk
0:00:09.3]} 42. Ne5 {[%clk 0:00:24.4]} 42... h6 {[%clk 0:00:04.7]} 43. h4 {[%clk
0:00:23.6]} 43... Bxc5 {[%clk 0:00:05.3]} 44. Rb8+ {[%clk 0:00:23.1]} 44... Kh7
{[%clk 0:00:05.4]} 45. h5 {[%clk 0:00:24.5]} 1-0

[Event "*** Titled Tuesday Blitz"]
[Site "Chess.com"]
[Date "2018.12.04"]
[Round "6"]
[White "ValeriyGrinev"]
[Black "Muguet7"]
[Result "0-1"]
[WhiteElo "2545"]
[BlackElo "2453"]
[TimeControl "180+2"]
[EndTime "14:22:03 PST"]
[Termination "Muguet7 won by resignation"]

1. d4 {[%clk 0:03:01.9]} 1... Nf6 {[%clk 0:03:00.7]} 2. Nf3 {[%clk 0:03:03.1]}
2... e6 {[%clk 0:03:01.9]} 3. e3 {[%clk 0:03:04.6]} 3... b6 {[%clk 0:03:02.7]}
4. Bd3 {[%clk 0:03:05.3]} 4... Bb7 {[%clk 0:03:03.8]} 5. O-O {[%clk 0:03:07.2]}
5... c5 {[%clk 0:03:04.9]} 6. c4 {[%clk 0:03:07.2]} 6... Be7 {[%clk 0:03:04.1]}
7. Nc3 {[%clk 0:03:08.6]} 7... d5 {[%clk 0:03:02.1]} 8. cxd5 {[%clk 0:03:07.2]}
8... exd5 {[%clk 0:03:02.9]} 9. Ne5 {[%clk 0:03:07.8]} 9... O-O {[%clk
0:03:03.4]} 10. f4 {[%clk 0:03:07.8]} 10... Nc6 {[%clk 0:03:03.7]} 11. Bb1
{[%clk 0:03:03.2]} 11... cxd4 {[%clk 0:03:01.5]} 12. Nxc6 {[%clk 0:03:03]} 12...
Bxc6 {[%clk 0:03:01.5]} 13. exd4 {[%clk 0:03:04.9]} 13... Ne4 {[%clk 0:03:00.6]}
14. Be3 {[%clk 0:03:05.1]} 14... f5 {[%clk 0:03:00.8]} 15. Bxe4 {[%clk 0:02:59]}
15... fxe4 {[%clk 0:03:00.3]} 16. f5 {[%clk 0:02:59.9]} 16... Bg5 {[%clk
0:02:58.4]} 17. Qd2 {[%clk 0:02:57.2]} 17... Bxe3+ {[%clk 0:02:56.8]} 18. Qxe3
{[%clk 0:02:59.1]} 18... Qd7 {[%clk 0:02:56.9]} 19. Qg5 {[%clk 0:02:54.3]} 19...
Rf6 {[%clk 0:02:54]} 20. Rf4 {[%clk 0:02:54.7]} 20... Raf8 {[%clk 0:02:53]} 21.
Raf1 {[%clk 0:02:56]} 21... Qd6 {[%clk 0:02:40.1]} 22. a3 {[%clk 0:02:41.6]}
22... Bd7 {[%clk 0:02:34.2]} 23. g4 {[%clk 0:02:40.9]} 23... b5 {[%clk
0:02:29.6]} 24. Qh4 {[%clk 0:02:34.6]} 24... a5 {[%clk 0:02:29.8]} 25. Qg3
{[%clk 0:02:33.3]} 25... b4 {[%clk 0:02:30]} 26. axb4 {[%clk 0:02:34.5]} 26...
axb4 {[%clk 0:02:29.8]} 27. Nd1 {[%clk 0:02:35.2]} 27... Bb5 {[%clk 0:02:29.1]}
28. R1f2 {[%clk 0:02:33]} 28... Qb6 {[%clk 0:02:28.1]} 29. Rd2 {[%clk
0:02:32.9]} 29... Bd3 {[%clk 0:02:20]} 30. Qf2 {[%clk 0:02:26.5]} 30... Rc6
{[%clk 0:02:11.9]} 31. g5 {[%clk 0:02:12.9]} 31... Rc4 {[%clk 0:01:52.4]} 32. b3
{[%clk 0:02:13]} 32... Rc1 {[%clk 0:01:37.8]} 33. f6 {[%clk 0:02:12.7]} 33...
gxf6 {[%clk 0:01:31.9]} 34. Rxf6 {[%clk 0:02:13.2]} 34... Rxf6 {[%clk
0:01:26.2]} 35. gxf6 {[%clk 0:02:15.1]} 35... Kf7 {[%clk 0:01:25.7]} 36. Qh4
{[%clk 0:02:14.2]} 36... Qxd4+ {[%clk 0:01:25.3]} 37. Kg2 {[%clk 0:02:11.4]}
37... Bf1+ {[%clk 0:01:19.7]} 38. Kg3 {[%clk 0:02:00.7]} 38... Qxd2 {[%clk
0:01:17.7]} 39. Qxh7+ {[%clk 0:02:01.7]} 39... Kxf6 {[%clk 0:01:18.7]} 40. Qh8+
{[%clk 0:02:01.6]} 40... Ke6 {[%clk 0:01:19]} 41. Qe8+ {[%clk 0:01:59.9]} 41...
Kd6 {[%clk 0:01:18.7]} 42. Qd8+ {[%clk 0:01:59.9]} 42... Kc5 {[%clk 0:01:19.6]}
43. Qc7+ {[%clk 0:01:51.7]} 43... Kd4 {[%clk 0:01:18.3]} 44. Qa7+ {[%clk
0:01:40.6]} 44... Kd3 {[%clk 0:00:58.3]} 45. Nf2+ {[%clk 0:01:41.6]} 45... Kc3
{[%clk 0:00:59.2]} 46. Ng4 {[%clk 0:01:26.3]} 46... Qg2+ {[%clk 0:00:55.4]} 47.
Kh4 {[%clk 0:01:25.3]} 47... Kb2 {[%clk 0:00:50.7]} 48. Ne3 {[%clk 0:01:10.7]}
48... Qf2+ {[%clk 0:00:47.8]} 49. Kg5 {[%clk 0:01:12.6]} 49... Qd2 {[%clk
0:00:39.2]} 50. Kf6 {[%clk 0:01:07.5]} 50... d4 {[%clk 0:00:34.8]} 51. Nf5
{[%clk 0:01:07.9]} 51... Rc6+ {[%clk 0:00:28.2]} 52. Ke5 {[%clk 0:01:06.7]}
52... e3 {[%clk 0:00:26.3]} 53. Nxd4 {[%clk 0:00:58.5]} 53... e2 {[%clk
0:00:26.3]} 54. Nxc6 {[%clk 0:00:52.6]} 54... e1=Q+ {[%clk 0:00:26.9]} 55. Kf6
{[%clk 0:00:53.5]} 55... Qdf2+ {[%clk 0:00:26.1]} 56. Kg7 {[%clk 0:00:51.1]}
56... Qxa7+ {[%clk 0:00:26.5]} 57. Nxa7 {[%clk 0:00:53]} 57... Qe5+ {[%clk
0:00:26.6]} 0-1

[Event "*** Titled Tuesday Blitz"]
[Site "Chess.com"]
[Date "2018.12.04"]
[Round "6"]
[White "GukeshDommaraju"]
[Black "BocharovD"]
[Result "0-1"]
[WhiteElo "2691"]
[BlackElo "2733"]
[TimeControl "180+2"]
[EndTime "14:22:10 PST"]
[Termination "BocharovD won by resignation"]

1. Nf3 {[%clk 0:03:01.9]} 1... d5 {[%clk 0:02:59.2]} 2. g3 {[%clk 0:03:02.2]}
2... c6 {[%clk 0:03:00.8]} 3. Bg2 {[%clk 0:03:02.7]} 3... Bg4 {[%clk 0:03:02.4]}
4. O-O {[%clk 0:03:03.4]} 4... Nd7 {[%clk 0:03:03.9]} 5. d3 {[%clk 0:03:04]}
5... Ngf6 {[%clk 0:03:05.4]} 6. h3 {[%clk 0:03:03.2]} 6... Bxf3 {[%clk
0:03:05.2]} 7. Bxf3 {[%clk 0:03:05.1]} 7... e5 {[%clk 0:03:06.6]} 8. e4 {[%clk
0:03:05.5]} 8... dxe4 {[%clk 0:03:08.5]} 9. dxe4 {[%clk 0:03:06.2]} 9... Bc5
{[%clk 0:03:10]} 10. Nd2 {[%clk 0:03:05.2]} 10... b5 {[%clk 0:03:11]} 11. a4
{[%clk 0:03:05.5]} 11... a6 {[%clk 0:03:08.6]} 12. Qe2 {[%clk 0:03:00.9]} 12...
O-O {[%clk 0:03:08.6]} 13. Nb3 {[%clk 0:02:57.7]} 13... Bb6 {[%clk 0:03:09.2]}
14. Bg5 {[%clk 0:02:52.1]} 14... h6 {[%clk 0:03:03.3]} 15. Bd2 {[%clk
0:02:50.9]} 15... Nc5 {[%clk 0:02:47.8]} 16. Nxc5 {[%clk 0:02:40.6]} 16... Bxc5
{[%clk 0:02:49.7]} 17. Rfd1 {[%clk 0:02:40.9]} 17... Qe7 {[%clk 0:02:36.1]} 18.
Kg2 {[%clk 0:02:37.9]} 18... Rfd8 {[%clk 0:02:34.1]} 19. Bc3 {[%clk 0:02:34.7]}
19... Nd7 {[%clk 0:02:15.4]} 20. axb5 {[%clk 0:02:11.3]} 20... axb5 {[%clk
0:02:15]} 21. Rxa8 {[%clk 0:02:06]} 21... Rxa8 {[%clk 0:02:16.9]} 22. Qd2 {[%clk
0:02:06.7]} 22... Nb6 {[%clk 0:02:10.9]} 23. b3 {[%clk 0:02:05.6]} 23... Qf6
{[%clk 0:01:34.3]} 24. Qd3 {[%clk 0:01:30.7]} 24... Qe7 {[%clk 0:01:30.9]} 25.
Bg4 {[%clk 0:01:27.8]} 25... g6 {[%clk 0:01:29.1]} 26. h4 {[%clk 0:01:15.7]}
26... h5 {[%clk 0:01:29.7]} 27. Bf3 {[%clk 0:01:16.3]} 27... Qf6 {[%clk
0:01:24.3]} 28. Qd2 {[%clk 0:01:15.3]} 28... Re8 {[%clk 0:01:03.6]} 29. Be2
{[%clk 0:00:50.9]} 29... Qe6 {[%clk 0:00:54]} 30. Bf3 {[%clk 0:00:46.7]} 30...
Qe7 {[%clk 0:00:52]} 31. Qh6 {[%clk 0:00:43.8]} 31... Nd7 {[%clk 0:00:50.4]} 32.
Bd2 {[%clk 0:00:32.7]} 32... Nf8 {[%clk 0:00:47.9]} 33. Bg5 {[%clk 0:00:30.9]}
33... f6 {[%clk 0:00:49.1]} 34. Bc1 {[%clk 0:00:30.7]} 34... Rd8 {[%clk
0:00:47.3]} 35. Rxd8 {[%clk 0:00:30.1]} 35... Qxd8 {[%clk 0:00:49.2]} 36. g4
{[%clk 0:00:26]} 36... hxg4 {[%clk 0:00:41.2]} 37. Bxg4 {[%clk 0:00:27.9]} 37...
Qd4 {[%clk 0:00:41.9]} 38. Qe3 {[%clk 0:00:27.7]} 38... Qxe3 {[%clk 0:00:41]}
39. Bxe3 {[%clk 0:00:29.6]} 39... Bxe3 {[%clk 0:00:42.3]} 40. fxe3 {[%clk
0:00:31.5]} 40... b4 {[%clk 0:00:44]} 41. Kf3 {[%clk 0:00:31.1]} 41... Kf7
{[%clk 0:00:43]} 42. Ke2 {[%clk 0:00:32]} 42... Ne6 {[%clk 0:00:31.8]} 43. Bxe6+
{[%clk 0:00:24.3]} 43... Kxe6 {[%clk 0:00:33.7]} 44. Kd3 {[%clk 0:00:26]} 44...
c5 {[%clk 0:00:32.3]} 45. Kc4 {[%clk 0:00:25]} 45... g5 {[%clk 0:00:33.5]} 46.
Kd3 {[%clk 0:00:26.4]} 46... Kf7 {[%clk 0:00:29]} 47. hxg5 {[%clk 0:00:20.7]}
47... fxg5 {[%clk 0:00:29.8]} 48. Ke2 {[%clk 0:00:22.6]} 48... Kg6 {[%clk
0:00:31.4]} 49. Kf3 {[%clk 0:00:23.6]} 49... Kh5 {[%clk 0:00:33]} 50. Kg3 {[%clk
0:00:23.9]} 50... g4 {[%clk 0:00:34.4]} 51. Kh2 {[%clk 0:00:23.8]} 51... Kh4
{[%clk 0:00:36.2]} 52. Kg2 {[%clk 0:00:24.5]} 52... g3 {[%clk 0:00:37.5]} 53.
Kg1 {[%clk 0:00:25.7]} 53... Kh3 {[%clk 0:00:38.6]} 54. Kh1 {[%clk 0:00:26.8]}
54... g2+ {[%clk 0:00:40.5]} 55. Kg1 {[%clk 0:00:28]} 55... Kg3 {[%clk
0:00:42.4]} 0-1

[Event "*** Titled Tuesday Blitz"]
[Site "Chess.com"]
[Date "2018.12.04"]
[Round "6"]
[White "FearNoEvil12"]
[Black "gemarin"]
[Result "0-1"]
[WhiteElo "1972"]
[BlackElo "2043"]
[TimeControl "180+2"]
[EndTime "14:22:14 PST"]
[Termination "gemarin won by resignation"]

1. e4 {[%clk 0:03:01.8]} 1... c5 {[%clk 0:02:54.6]} 2. Nc3 {[%clk 0:03:00.9]}
2... g6 {[%clk 0:02:53.7]} 3. f4 {[%clk 0:03:01.7]} 3... Bg7 {[%clk 0:02:54.3]}
4. Nf3 {[%clk 0:03:03.3]} 4... d6 {[%clk 0:02:50.8]} 5. Bc4 {[%clk 0:03:05.2]}
5... e6 {[%clk 0:02:51.3]} 6. f5 {[%clk 0:03:07.1]} 6... a6 {[%clk 0:02:46.7]}
7. d3 {[%clk 0:03:09]} 7... b5 {[%clk 0:02:39.4]} 8. a4 {[%clk 0:03:10.9]} 8...
bxc4 {[%clk 0:02:39.5]} 9. fxg6 {[%clk 0:03:01.4]} 9... hxg6 {[%clk 0:02:39.2]}
10. O-O {[%clk 0:03:02]} 10... cxd3 {[%clk 0:02:38.3]} 11. cxd3 {[%clk
0:03:02.4]} 11... Nc6 {[%clk 0:02:30.6]} 12. Bg5 {[%clk 0:02:58]} 12... Nge7
{[%clk 0:02:27.9]} 13. Qd2 {[%clk 0:02:56]} 13... Qb6 {[%clk 0:02:23.6]} 14. Kh1
{[%clk 0:02:54.6]} 14... Rb8 {[%clk 0:02:24.5]} 15. Rab1 {[%clk 0:02:49.5]}
15... Qb4 {[%clk 0:02:25]} 16. Qf4 {[%clk 0:02:46.5]} 16... Rf8 {[%clk
0:02:15.5]} 17. Qxd6 {[%clk 0:02:45.4]} 17... Qb6 {[%clk 0:02:01.3]} 18. Rbe1
{[%clk 0:02:15]} 18... f6 {[%clk 0:01:46.8]} 19. Be3 {[%clk 0:02:02.8]} 19...
Nd4 {[%clk 0:01:46.6]} 20. Qg3 {[%clk 0:01:49.2]} 20... Rb7 {[%clk 0:01:29.5]}
21. Qf2 {[%clk 0:01:39.8]} 21... e5 {[%clk 0:01:27.4]} 22. Rb1 {[%clk
0:01:30.3]} 22... Be6 {[%clk 0:01:25.9]} 23. Nh4 {[%clk 0:01:22.1]} 23... Qd6
{[%clk 0:01:06.6]} 24. a5 {[%clk 0:01:16.1]} 24... Rb4 {[%clk 0:01:04.3]} 25.
Qg3 {[%clk 0:01:11.8]} 25... Bf7 {[%clk 0:01:02.5]} 26. Nd5 {[%clk 0:01:05.6]}
26... Bxd5 {[%clk 0:01:01.1]} 27. exd5 {[%clk 0:01:05.9]} 27... g5 {[%clk
0:00:55.6]} 28. Qg4 {[%clk 0:01:00.9]} 28... Qxd5 {[%clk 0:00:43.9]} 29. Qh5+
{[%clk 0:00:54.9]} 29... Qf7 {[%clk 0:00:43.4]} 30. Qxf7+ {[%clk 0:00:41.3]}
30... Rxf7 {[%clk 0:00:42]} 31. Nf3 {[%clk 0:00:42.6]} 31... Nef5 {[%clk
0:00:37.3]} 32. Bg1 {[%clk 0:00:39.6]} 32... Nxf3 {[%clk 0:00:35.7]} 33. Rxf3
{[%clk 0:00:39.9]} 33... Nd4 {[%clk 0:00:35.9]} 34. Rh3 {[%clk 0:00:39]} 34...
Rfb7 {[%clk 0:00:35.2]} 35. Rh7 {[%clk 0:00:32.9]} 35... Kf7 {[%clk 0:00:36]}
36. h4 {[%clk 0:00:31]} 36... Kg6 {[%clk 0:00:29.3]} 37. Rxg7+ {[%clk
0:00:30.8]} 37... Kxg7 {[%clk 0:00:30.2]} 38. hxg5 {[%clk 0:00:30.8]} 38... fxg5
{[%clk 0:00:31.5]} 39. Kh2 {[%clk 0:00:31.1]} 39... Rxb2 {[%clk 0:00:31.8]} 40.
Rf1 {[%clk 0:00:31.3]} 40... Re2 {[%clk 0:00:30.3]} 41. Kg3 {[%clk 0:00:31.8]}
41... Rbb2 {[%clk 0:00:29.5]} 42. Bf2 {[%clk 0:00:28.1]} 42... Rxf2 {[%clk
0:00:29]} 43. Rxf2 {[%clk 0:00:28.7]} 43... Rxf2 {[%clk 0:00:29.5]} 44. Kxf2
{[%clk 0:00:30.3]} 44... Kf6 {[%clk 0:00:30.9]} 45. Ke3 {[%clk 0:00:31]} 45...
Kf5 {[%clk 0:00:32]} 46. Kd2 {[%clk 0:00:31.4]} 46... g4 {[%clk 0:00:32.6]} 47.
Kc3 {[%clk 0:00:32.6]} 47... Nc6 {[%clk 0:00:25.5]} 48. Kc4 {[%clk 0:00:34.5]}
48... Nxa5+ {[%clk 0:00:26.5]} 49. Kxc5 {[%clk 0:00:36.2]} 49... Nb3+ {[%clk
0:00:27.4]} 50. Kb6 {[%clk 0:00:34.1]} 50... Nc1 {[%clk 0:00:28]} 51. Kxa6
{[%clk 0:00:33.4]} 51... Nxd3 {[%clk 0:00:28.9]} 52. Kb5 {[%clk 0:00:35]} 52...
g3 {[%clk 0:00:29.5]} 53. Kc4 {[%clk 0:00:36.1]} 53... Nf4 {[%clk 0:00:30.7]}
54. Kc3 {[%clk 0:00:36.7]} 54... Nxg2 {[%clk 0:00:31.8]} 55. Kd2 {[%clk
0:00:37.2]} 55... Kf4 {[%clk 0:00:32.4]} 56. Ke2 {[%clk 0:00:38.5]} 56... Nh4
{[%clk 0:00:32.4]} 57. Kf1 {[%clk 0:00:39.3]} 57... Kf3 {[%clk 0:00:33.5]} 58.
Kg1 {[%clk 0:00:39.7]} 58... e4 {[%clk 0:00:34.1]} 59. Kf1 {[%clk 0:00:39.9]}
59... e3 {[%clk 0:00:34.7]} 60. Kg1 {[%clk 0:00:36.9]} 60... e2 {[%clk
0:00:34.6]} 0-1